bitfinex/quotes_SOLUSD_20250316
["timestamp","ask_amount","ask_price","bid_price","bid_amount"]
[1742084721462,16.6437743,136.45,136.43,21.07449773]
[1742084721663,16.6437743,136.45,136.44,13.46047459]
[1742084723515,16.6437743,136.45,136.44,20.78967459]
[1742084724266,16.6437743,136.45,136.43,20.79007459]
[1742084725091,0.063,136.46,136.43,20.79007459]
[1742084726180,0.063,136.46,136.44,13.46047459]
[1742084727178,0.063,136.46,136.45,13.46047459]
[1742084727885,0.063,136.46,136.44,13.46047459]
[1742084728196,0.063,136.46,136.45,7.3286]
[1742084730096,0.063,136.46,136.45,20.78907459]
[1742084730611,0.063,136.46,136.45,21.07339773]
[1742084730792,0.063,136.46,136.45,39.72304659]
[1742084732675,0.063,136.46,136.45,41.30104659]
[1742084741787,0.063,136.46,136.45,47.56104659]
[1742084744295,0.063,136.46,136.45,27.33339773]
[1742084752197,0.063,136.46,136.45,45.98304659]
[1742084759825,0.063,136.46,136.43,0.03]
[1742084760038,95.66047459,136.45,136.43,0.03]
[1742084760212,97.03481693,136.45,136.43,0.03]
[1742084760395,13.46047459,136.44,136.43,0.03]
[1742084760924,97.03481693,136.45,136.43,0.03]
[1742084761312,21.39507459,136.44,136.43,0.03]
[1742084762131,28.72427459,136.44,136.43,0.03]
[1742084762335,30.09881744,136.44,136.43,0.03]
[1742084763320,28.72427459,136.44,136.43,0.03]
[1742084763517,82.56617295,136.44,136.43,0.03]
[1742084763722,13.46047459,136.42,136.41,0.03]
[1742084764241,20.79077459,136.42,136.41,0.03]
[1742084765911,13.46047459,136.42,136.41,0.03]
[1742084766633,22.76972635,136.44,136.41,0.03]
[1742084766807,9.30925176,136.44,136.41,0.03]
[1742084767232,7.9346,136.44,136.41,0.03]
[1742084767532,6.2706,136.44,136.41,13.49047459]
[1742084768638,19.73107459,136.44,136.41,0.03]
[1742084768821,13.46047459,136.42,136.41,0.03]
[1742084769832,14.97167459,136.42,136.41,0.03]
[1742084774338,22.30197459,136.42,136.41,0.03]
[1742084778460,47.37478502,136.42,136.41,0.03]
[1742084778822,20.0,136.39,136.35,0.03]
[1742084779026,13.46047459,136.37,136.35,0.03]
[1742084779948,97.03564009,136.38,136.35,0.03]
[1742084780720,13.46047459,136.37,136.35,0.03]
[1742084781134,97.03564009,136.38,136.35,0.03]
[1742084781550,83.5751655,136.38,136.35,0.03]
[1742084782034,82.2,136.38,136.35,13.49047459]
[1742084782222,82.2,136.38,136.35,20.82417459]
[1742084782418,82.2,136.38,136.35,7.3637]
[1742084782628,82.2,136.38,136.35,0.03]
[1742084783157,1.3750357,136.37,136.35,0.03]
[1742084783458,97.03564352,136.38,136.35,0.03]
[1742084783638,82.2,136.37,136.35,7.364]
[1742084784254,82.2,136.37,136.35,0.03]
[1742084785946,95.66047459,136.37,136.35,0.03]
[1742084786137,97.03557629,136.37,136.35,0.03]
[1742084787134,95.66047459,136.37,136.35,0.03]
[1742084787441,104.96843736,136.36,136.35,0.03]
[1742084787647,22.76843736,136.36,136.35,0.03]
[1742084788154,30.10193736,136.36,136.35,0.03]
[1742084789734,9.30796277,136.36,136.35,0.03]
[1742084789940,6.3517,136.36,136.35,0.03]
[1742084791266,1.37515193,136.38,136.35,0.03]
[1742084791563,14.83562652,136.38,136.35,0.03]
[1742084791858,6.1157,136.41,136.37,13.46047459]
[1742084792158,6.1157,136.41,136.38,13.46047459]
[1742084793163,6.1157,136.41,136.38,20.79247459]
[1742084793547,6.1157,136.41,136.38,7.332]
[1742084793751,1.3748171,136.4,136.38,7.332]
[1742084793947,7.49054482,136.41,136.38,7.332]
[1742084794151,7.49054482,136.41,136.38,20.79247459]
[1742084794330,3.01885727,136.43,136.39,13.46047459]
[1742084794539,1.43775727,136.43,136.4,13.46047459]
[1742084794964,14.89823186,136.43,136.38,20.79247459]
[1742084795139,14.89823186,136.43,136.4,7.3313]
[1742084795550,1.43775727,136.43,136.4,7.3313]
[1742084796466,14.89823186,136.43,136.38,13.46047459]
[1742084796660,13.46047459,136.42,136.37,13.46047459]
[1742084796838,1.37476969,136.41,136.37,13.46047459]
[1742084797663,1.37476969,136.41,136.38,13.46047459]
[1742084800045,14.83523347,136.42,136.38,20.79277459]
[1742084800967,0.063,136.41,136.38,20.79277459]
[1742084801266,82.2,136.4,136.38,20.79277459]
[1742084802465,95.66047459,136.4,136.35,19.75047459]
[1742084802663,82.2,136.4,136.36,13.46047459]
[1742084803868,82.2,136.4,136.36,20.79397459]
[1742084806469,82.2,136.4,136.37,13.46047459]
[1742084807453,82.2,136.4,136.37,20.79307459]
[1742084807977,82.2,136.4,136.37,7.3326]
[1742084808974,82.2,136.4,136.37,20.79307459]
[1742084809375,82.2,136.4,136.37,7.3326]
[1742084810676,82.2,136.4,136.37,20.79307459]
[1742084811178,82.2,136.4,136.37,7.3326]
[1742084812162,1.374878,136.39,136.36,13.46047459]
[1742084812361,82.2,136.38,136.35,20.82417459]
[1742084812681,82.2,136.38,136.36,13.46047459]
[1742084812974,82.2,136.38,136.37,7.3329]
[1742084813980,82.2,136.38,136.37,20.79337459]
[1742084821760,0.063,136.41,136.38,0.28432314]
[1742084822090,0.063,136.41,136.4,13.46047459]
[1742084823607,0.063,136.41,136.4,20.79177459]
[1742084824292,0.063,136.41,136.39,13.46047459]
[1742084824464,0.063,136.41,136.4,13.46047459]
[1742084825574,0.063,136.41,136.4,20.79177459]
[1742084837502,0.063,136.43,136.41,0.28432314]
[1742084837801,0.063,136.43,136.42,19.72047459]
[1742084838206,0.063,136.43,136.42,27.05077459]
[1742084842421,0.063,136.43,136.42,27.33509773]
[1742084847209,0.0001,136.43,136.42,45.98474659]
[1742084847393,0.063,136.45,136.43,0.28432314]
[1742084847713,0.063,136.45,136.44,67.30237295]
[1742084849713,0.063,136.45,136.44,74.63157295]
[1742084851017,0.063,136.45,136.44,20.78967459]
[1742084851898,0.063,136.45,136.44,74.63157295]
[1742084853412,0.063,136.45,136.44,20.78967459]
[1742084857017,0.063,136.45,136.44,74.63157295]
[1742084859316,0.063,136.45,136.44,20.78967459]
[1742084860528,0.063,136.45,136.44,74.63157295]
[1742084862928,0.063,136.45,136.44,74.91589609]
[1742084863145,0.063,136.46,136.45,0.28432314]
[1742084863320,0.063,136.47,136.45,13.74479773]
[1742084863640,0.063,136.47,136.46,13.74479773]
[1742084864216,0.063,136.47,136.46,21.07289773]
[1742084871737,0.063,136.47,136.46,21.13589773]
[1742084873623,0.063,136.47,136.46,20.85157459]
[1742084876840,0.063,136.47,136.46,21.13589773]
[1742084878620,0.063,136.47,136.46,20.85157459]
[1742084885350,0.063,136.47,136.46,21.13589773]
[1742084888940,0.063,136.49,136.46,58.10584659]
[1742084889146,0.063,136.49,136.48,13.74479773]
[1742084890962,0.063,136.49,136.48,21.07179773]
[1742084891252,0.063,136.49,136.48,20.78747459]
[1742084894975,0.063,136.49,136.48,13.46047459]
[1742084897589,0.063,136.49,136.48,20.78747459]
[1742084912923,0.063,136.49,136.46,0.063]
[1742084912924,1.43658743,136.49,136.46,0.063]
[1742084913124,2.98848743,136.49,136.47,13.46047459]
[1742084916322,2.98848743,136.49,136.46,13.52347459]
[1742084916323,88.552,136.48,136.46,13.52347459]
[1742084916520,1.3743106,136.47,136.46,0.063]
[1742084917142,2.9262106,136.47,136.46,0.063]
[1742084917547,16.38668519,136.47,136.46,0.063]
[1742084918249,23.71428519,136.47,136.46,0.063]
[1742084918948,23.71428519,136.47,136.43,0.03]
[1742084918949,18.64964886,136.45,136.43,0.03]
[1742084919122,1.37470708,136.44,136.43,0.03]
[1742084920244,1.37455577,136.45,136.43,0.03]
[1742084921723,1.37455577,136.45,136.43,13.49047459]
[1742084922127,1.37455577,136.45,136.43,20.81987459]
[1742084924346,82.2,136.44,136.43,20.81987459]
[1742084926134,82.2,136.44,136.43,13.49047459]
[1742084926658,82.2,136.44,136.43,20.82017459]
[1742084928461,82.2,136.44,136.43,13.49047459]
[1742084928664,82.2,136.44,136.43,20.82017459]
[1742084929238,82.2,136.44,136.43,13.49047459]
[1742084931255,13.46047459,136.48,136.43,13.49047459]
[1742084931256,83.63742589,136.49,136.44,0.28432314]
[1742084931563,82.263,136.49,136.48,13.46047459]
[1742084932860,82.263,136.49,136.48,20.78747459]
[1742084940066,0.063,136.49,136.48,20.78747459]
[1742084940767,0.063,136.5,136.48,21.07179773]
[1742084940945,0.063,136.5,136.49,13.46047459]
[1742084941957,0.0001,136.5,136.49,74.91319609]
[1742084942165,0.0001,136.52,136.49,111.87914495]
[1742084942465,0.0001,136.52,136.51,13.74479773]
[1742084943570,0.0001,136.52,136.51,21.07019773]
[1742084944967,0.0001,136.52,136.51,13.46047459]
[1742084946242,0.0001,136.52,136.51,20.78587459]
[1742084947047,0.0001,136.52,136.51,13.46047459]
[1742084947748,0.0001,136.52,136.51,21.07019773]
[1742084954561,0.6664724,136.53,136.52,18.933972]
[1742084954871,0.6664724,136.53,136.52,32.39444659]
[1742084956162,0.6664724,136.53,136.52,39.71934659]
[1742084958382,7.24e-05,136.53,136.52,39.71934659]
[1742084958961,0.063,136.54,136.52,39.71934659]
[1742084959159,0.063,136.54,136.53,19.70047459]
[1742084960174,0.063,136.56,136.55,20.0]
[1742084960393,0.0001,136.61,136.6,20.28432314]
[1742084960603,0.03,136.66,136.63,38.933972]
[1742084960890,0.03,136.66,136.63,20.14216157]
[1742084961059,0.03,136.66,136.63,20.0]
[1742084961988,0.03,136.66,136.65,13.46047459]
[1742084970987,1.40201873,136.66,136.63,13.46047459]
[1742084971168,6.0764,136.64,136.63,13.46047459]
[1742084972565,13.3949,136.64,136.62,13.46047459]
[1742084972972,6.0764,136.64,136.62,13.46047459]
[1742084974586,6.0764,136.64,136.63,13.46047459]
[1742084975283,13.3949,136.64,136.63,13.46047459]
[1742084975475,13.3949,136.64,136.62,13.46047459]
[1742084975673,1.37251838,136.63,136.62,13.46047459]
[1742084976186,6.0764,136.64,136.62,13.46047459]
[1742084976388,6.0764,136.64,136.63,13.46047459]
[1742084976986,6.1064,136.64,136.63,13.46047459]
[1742084977588,82.2,136.63,136.54,1.6312]
[1742084977782,97.03324059,136.62,136.57,13.46047459]
[1742084977981,82.2,136.61,136.57,13.46047459]
[1742084978176,1.37291589,136.6,136.57,13.46047459]
[1742084979072,8.69381589,136.6,136.57,13.46047459]
[1742084979870,8.69381589,136.6,136.56,13.46047459]
[1742084980172,83.75,136.59,136.55,13.46047459]
[1742084980502,83.57312087,136.58,136.55,13.46047459]
[1742084983188,90.89482087,136.58,136.55,13.46047459]
[1742084983486,97.16492087,136.58,136.55,13.46047459]
[1742084983707,97.16492087,136.58,136.53,13.46047459]
[1742084983708,110.62539546,136.58,136.53,13.46047459]
[1742084983873,13.46047459,136.57,136.52,13.52347459]
[1742084984073,83.57346894,136.56,136.52,13.52347459]
[1742084986382,90.89646894,136.56,136.52,13.52347459]
[1742084986801,90.89646894,136.56,136.52,0.063]
[1742084986802,82.2,136.55,136.52,0.063]
[1742084987099,1.5464,136.53,136.52,0.063]
[1742084990397,1.37355662,136.54,136.52,13.52347459]
[1742084990780,82.2,136.55,136.53,13.46047459]
[1742084990976,82.2,136.55,136.54,13.46047459]
[1742084992177,1.5464,136.57,136.55,7.3233]
[1742084992376,88.4701,136.58,136.56,13.46047459]
[1742084992673,88.4701,136.58,136.55,7.3233]
[1742084992674,88.4701,136.58,136.57,13.46047459]
[1742084992882,82.2,136.58,136.57,13.46047459]
[1742084994906,82.2,136.58,136.52,24.77636157]
[1742084995210,1.37314881,136.57,136.54,13.46047459]
[1742084996314,1.37314881,136.57,136.54,20.96296413]
[1742084997298,6.5317,136.56,136.54,20.96296413]
[1742084997601,6.5317,136.56,136.53,20.96296413]
[1742084997823,6.5317,136.56,136.52,0.063]
[1742084997824,85.14291529,136.55,136.52,0.063]
[1742084998117,82.2,136.54,136.52,0.063]
[1742084998287,1.37352588,136.53,136.52,0.063]
[1742084998887,82.2,136.54,136.52,0.063]
[1742084999099,82.2,136.54,136.52,21.02596413]
[1742085000812,82.2,136.54,136.53,20.96296413]
[1742085000998,82.2,136.54,136.52,21.02596413]
[1742085003122,123.47045202,136.53,136.52,0.063]
[1742085003297,20.0,136.5,136.49,0.063]
[1742085003488,42.53256413,136.5,136.49,0.063]
[1742085004902,21.5696,136.5,136.49,0.063]
[1742085005106,22.94363745,136.5,136.49,0.063]
[1742085005486,21.5696,136.5,136.49,0.063]
[1742085011290,20.0,136.5,136.49,0.063]
[1742085012799,21.37394414,136.5,136.49,0.063]
[1742085012993,28.69994414,136.5,136.49,0.063]
[1742085013194,49.66290827,136.5,136.49,0.063]
[1742085014506,22.33690827,136.5,136.49,0.063]
[1742085014713,21.37394414,136.5,136.49,0.063]
[1742085015016,20.0,136.5,136.49,0.063]
[1742085021790,48.28896413,136.5,136.49,0.063]
[1742085021996,96.96159817,136.5,136.49,0.063]
[1742085022201,97.10375974,136.5,136.49,0.0001]
[1742085022408,20.0,136.46,136.43,0.03]
[1742085022608,22.33745639,136.45,136.43,0.03]
[1742085023916,29.66615639,136.45,136.43,0.03]
[1742085025012,22.33745639,136.45,136.43,0.03]
[1742085025218,20.0,136.44,136.43,0.03]
[1742085026222,20.0,136.44,136.43,7.3597]
[1742085026423,102.2,136.44,136.43,0.03]
[1742085027324,82.2,136.44,136.43,20.99296413]
[1742085027901,1.37435897,136.46,136.43,20.99296413]
[1742085030233,1.37435897,136.46,136.43,28.32226413]
[1742085030408,82.2,136.47,136.45,20.96296413]
[1742085031617,82.2,136.47,136.46,20.96296413]
[1742085033624,82.2,136.47,136.46,28.29106413]
[1742085033806,82.2,136.47,136.46,7.3281]
[1742085036035,1.37411065,136.49,136.46,28.29106413]
[1742085036331,1.37411065,136.49,136.47,20.96296413]
[1742085036501,1.37411065,136.49,136.46,28.29106413]
[1742085038528,1.37411065,136.49,136.46,20.96296413]
[1742085038761,1.37411065,136.49,136.45,28.29136413]
[1742085040010,20.96296413,136.48,136.44,0.063]
[1742085040312,20.96296413,136.46,136.44,0.063]
[1742085040524,1.3744449,136.45,136.44,0.063]
[1742085040723,22.33740903,136.45,136.44,0.063]
[1742085041521,1.3744449,136.45,136.44,0.063]
[1742085042045,8.7030449,136.45,136.44,0.063]
[1742085042211,29.66600903,136.45,136.44,0.063]
[1742085046832,8.7030449,136.45,136.44,0.063]
[1742085048031,1.3744449,136.45,136.44,0.063]
[1742085048218,1.37433586,136.46,136.44,0.063]
[1742085050138,1.37427966,136.47,136.44,0.063]
[1742085050536,29.66484379,136.47,136.44,0.063]
[1742085051219,1.37427966,136.47,136.44,0.063]
[1742085051532,8.70197966,136.47,136.44,0.063]
[1742085052529,68.82660026,136.45,136.44,0.0001]
[1742085052745,76.48157216,136.45,136.44,0.0001]
[1742085053517,62.84720803,136.45,136.44,0.0001]
[1742085054542,83.81017216,136.45,136.44,0.0001]
[1742085055827,62.84720803,136.45,136.44,0.0001]
[1742085056937,62.56288489,136.45,136.44,0.0001]
[1742085058439,1.3749719,136.45,136.44,0.0001]
[1742085058644,1.3746789,136.46,136.44,0.0001]
[1742085059730,1.37424294,136.47,136.44,0.0001]
[1742085059928,1.37423945,136.48,136.44,20.96306413]
[1742085060132,1.37423945,136.48,136.45,20.96296413]
[1742085060344,82.2,136.47,136.45,20.96296413]
[1742085060657,82.2,136.47,136.45,28.29116413]
[1742085061153,82.2,136.47,136.45,7.3282]
[1742085061460,82.2,136.47,136.44,28.29206413]
[1742085064248,82.2,136.47,136.45,20.96296413]
[1742085064729,82.2,136.47,136.44,28.29206413]
[1742085066641,82.2,136.47,136.44,0.0001]
[1742085066820,1.37415101,136.46,136.44,0.0001]
[1742085067530,83.5742788,136.47,136.44,20.96306413]
[1742085067825,82.2,136.47,136.45,20.96296413]
[1742085068228,82.2,136.47,136.46,20.96296413]
[1742085069833,82.2,136.47,136.45,28.29146413]
[1742085071749,82.2,136.47,136.45,20.96296413]
[1742085071938,89.5276,136.47,136.44,0.0001]
[1742085072143,1.3740583,136.46,136.44,0.0001]
[1742085074338,8.7021583,136.46,136.44,0.0001]
[1742085075552,1.3740583,136.46,136.44,0.0001]
[1742085077245,83.57427268,136.47,136.44,0.0001]
[1742085077443,83.57427268,136.47,136.44,20.96306413]
[1742085077953,83.57427268,136.47,136.44,0.0001]
[1742085078356,90.90197268,136.47,136.44,0.0001]
[1742085078752,103.16296413,136.46,136.44,0.0001]
[1742085078944,123.18716254,136.45,136.44,0.0001]
[1742085079334,123.47148568,136.45,136.44,0.0001]
[1742085079536,150.53554981,136.45,136.44,0.0001]
[1742085080034,68.33554981,136.45,136.44,0.0001]
[1742085080437,68.33554981,136.45,136.43,0.0001]
[1742085080438,25.97884886,136.44,136.43,0.0001]
[1742085080759,74.18477712,136.44,136.43,0.0001]
[1742085082159,76.24417712,136.44,136.43,0.0001]
[1742085083040,54.78121299,136.44,136.43,0.0001]
[1742085083849,48.50121299,136.44,136.43,0.0001]
[1742085088366,35.76751368,136.45,136.43,0.0001]
[1742085089546,20.0,136.44,136.43,0.0001]
[1742085089741,1.37454955,136.45,136.43,0.0001]
[1742085090151,20.0,136.44,136.43,0.0001]
[1742085091473,1.37454955,136.45,136.43,0.0001]
[1742085091947,1.40442804,136.47,136.43,20.96306413]
[1742085092143,8.73202804,136.47,136.43,20.96306413]
[1742085092352,29.69499217,136.47,136.43,0.0001]
[1742085092769,0.03,136.46,136.43,0.0001]
[1742085094876,0.03,136.46,136.43,20.96306413]
[1742085095755,0.03,136.46,136.44,20.96296413]
[1742085096878,0.03,136.46,136.44,28.29216413]
[1742085097457,82.23,136.46,136.44,28.29216413]
[1742085098804,1.37409748,136.45,136.43,0.0001]
[1742085099976,143.05990026,136.44,136.43,0.0001]
[1742085100180,60.85990026,136.44,136.43,0.0001]
[1742085101262,68.18910026,136.44,136.43,0.0001]
[1742085103266,27.61622314,136.39,136.38,0.063]
[1742085103459,18.933972,136.38,136.37,0.03]
[1742085103659,60.85990026,136.38,136.37,0.03]
[1742085105464,46.94501299,136.38,136.37,0.03]
[1742085106190,68.19230026,136.38,136.37,0.03]
[1742085106996,68.69230026,136.38,136.37,0.03]
[1742085108883,68.69230026,136.38,136.36,0.03]
[1742085109071,40.98834523,136.37,136.36,0.03]
[1742085109885,41.27266837,136.37,136.36,0.03]
[1742085110182,40.98834523,136.37,136.36,0.03]
[1742085110588,48.32124523,136.37,136.36,0.03]
[1742085111309,20.0253811,136.37,136.36,0.03]
[1742085111793,48.32124523,136.37,136.36,0.03]
[1742085115997,48.32124523,136.37,136.35,0.03]
[1742085115998,18.933972,136.36,136.35,0.03]
[1742085116170,39.89693613,136.36,136.35,0.03]
[1742085116571,39.89693613,136.36,136.35,0.0001]
[1742085116899,100.81954886,136.34,136.33,0.063]
[1742085117098,129.47845408,136.34,136.33,0.063]
[1742085117719,136.81305408,136.34,136.33,0.063]
[1742085120886,54.64315408,136.34,136.33,0.063]
[1742085121917,61.55797722,136.34,136.33,0.063]
[1742085122214,61.55797722,136.34,136.33,0.0001]
[1742085129321,61.58797722,136.34,136.33,0.0001]
[1742085130423,54.67315408,136.34,136.33,0.0001]
[1742085131624,48.35315408,136.34,136.33,0.0001]
[1742085136352,1.40594109,136.34,136.33,0.0001]
[1742085136507,0.03,136.34,136.33,0.0001]
[1742085136711,20.03,136.34,136.33,0.0001]
[1742085140129,59.64261299,136.34,136.33,0.0001]
[1742085140342,68.35296787,136.34,136.33,0.0001]
[1742085141631,1.40575488,136.34,136.33,0.0001]
[1742085142009,20.03,136.34,136.33,0.0001]
[1742085146421,20.03,136.34,136.33,0.0001]
[1742085147430,27.3646,136.34,136.33,0.0001]
[1742085148634,59.47569293,136.34,136.33,0.0001]
[1742085151227,40.82604407,136.34,136.33,0.0001]
[1742085151431,59.47569293,136.34,136.33,0.0001]
[1742085155047,59.76001607,136.34,136.33,0.0001]
[1742085155722,59.76001607,136.34,136.32,0.0001]
[1742085155723,19.14964886,136.33,136.32,0.0001]
[1742085155929,40.30724045,136.33,136.32,0.0001]
[1742085156133,93.65301673,136.33,136.32,0.0001]
[1742085156647,120.11023987,136.33,136.3,0.063]
[1742085156837,52.39541607,136.31,136.3,0.063]
[1742085157049,53.77165084,136.31,136.3,0.063]
[1742085158360,1.37623477,136.31,136.3,0.063]
[1742085158536,1.37613617,136.32,136.3,0.063]
[1742085160055,1.37573333,136.31,136.3,0.063]
[1742085160264,1.37573747,136.33,136.3,0.063]
[1742085168345,1.40569474,136.34,136.3,13.52444407]
[1742085170361,1.40569474,136.34,136.3,20.86084407]
[1742085172048,82.23,136.34,136.32,13.46144407]
[1742085172561,82.23,136.34,136.32,20.79654407]
[1742085173256,1.37534911,136.33,136.3,0.063]
[1742085173458,1.37534911,136.33,136.3,13.52444407]
[1742085174365,1.37534911,136.33,136.3,20.86104407]
[1742085177463,83.60554472,136.34,136.3,20.86104407]
[1742085178564,82.23,136.34,136.31,13.46144407]
[1742085179172,82.23,136.34,136.32,13.46144407]
[1742085180268,82.23,136.34,136.32,20.79694407]
[1742085180767,82.23,136.34,136.31,20.79744407]
[1742085180957,82.23,136.34,136.3,20.86104407]
[1742085181265,1.37551159,136.33,136.3,13.52444407]
[1742085181468,89.5647,136.34,136.3,13.52444407]
[1742085182269,89.5647,136.34,136.3,20.86114407]
[1742085182565,82.23,136.34,136.31,13.46144407]
[1742085184344,82.23,136.34,136.31,20.79744407]
[1742085185650,82.23,136.34,136.32,13.46144407]
[1742085186047,82.23,136.34,136.33,13.46144407]
[1742085186444,82.23,136.34,136.33,20.79654407]
[1742085186649,0.03,136.34,136.33,20.79654407]
[1742085188460,0.03,136.34,136.33,20.93870564]
[1742085189061,0.03,136.34,136.33,21.08086721]
[1742085192489,0.03,136.34,136.33,20.79654407]
[1742085192980,0.03,136.34,136.32,13.46144407]
[1742085194056,0.03,136.34,136.33,13.46144407]
[1742085198188,0.03,136.34,136.33,20.79654407]
[1742085198685,0.03,136.34,136.33,13.46144407]
[1742085199964,0.03,136.34,136.3,0.063]
[1742085200165,0.03,136.34,136.3,13.52444407]
[1742085200382,0.03,136.34,136.3,0.063]
[1742085200568,20.0,136.31,136.3,13.52444407]
[1742085202577,83.57563989,136.33,136.3,13.52444407]
[1742085202784,82.2,136.33,136.31,13.46144407]
[1742085204179,82.2,136.33,136.3,13.52444407]
[1742085207082,6.4982,136.32,136.3,0.063]
[1742085207286,97.03698955,136.31,136.3,0.063]
[1742085208391,104.37318955,136.31,136.3,0.063]
[1742085208684,123.02283841,136.31,136.3,0.063]
[1742085209594,90.91174548,136.31,136.3,0.063]
[1742085209771,83.57554548,136.31,136.3,0.063]
[1742085211092,90.91174548,136.31,136.3,0.063]
[1742085211774,8.71174548,136.31,136.3,0.063]
[1742085214401,40.82283841,136.31,136.3,0.063]
[1742085214891,42.35223841,136.31,136.3,0.063]
[1742085216001,42.63656155,136.31,136.3,0.063]
[1742085217094,42.35223841,136.31,136.3,0.063]
[1742085219192,10.24114548,136.31,136.3,0.063]
[1742085219384,42.35223841,136.31,136.3,0.063]
[1742085223076,42.41523841,136.31,136.3,0.063]
[1742085224897,1.43854548,136.31,136.3,0.063]
[1742085226582,27.42439434,136.31,136.3,0.063]
[1742085226985,20.08819434,136.31,136.3,0.063]
[1742085228093,1.43854548,136.31,136.3,0.063]
[1742085228490,0.063,136.31,136.3,0.063]
[1742085229397,0.063,136.31,136.3,13.52444407]
[1742085230694,0.03,136.34,136.31,0.14216157]
[1742085231002,0.03,136.34,136.33,13.46144407]
[1742085233811,0.03,136.34,136.33,20.79654407]
[1742085234805,0.03,136.34,136.33,13.46144407]
[1742085235505,0.03,136.34,136.32,13.46144407]
[1742085235709,0.03,136.34,136.33,13.46144407]
[1742085237189,0.03,136.34,136.33,20.79654407]
[1742085241322,0.03,136.34,136.33,20.93870564]
[1742085242918,0.03,136.34,136.33,20.79654407]
[1742085243094,0.03,136.34,136.33,13.46144407]
[1742085246215,0.03,136.34,136.33,20.79654407]
[1742085246420,0.03,136.34,136.33,13.46144407]
[1742085247316,0.03,136.34,136.32,13.46144407]
[1742085248954,0.03,136.34,136.33,13.46144407]
[1742085250720,0.03,136.34,136.33,20.79654407]
[1742085255716,0.03,136.34,136.33,7.3351]
[1742085255910,0.03,136.34,136.33,20.79654407]
[1742085260427,0.03,136.34,136.33,20.93870564]
[1742085262109,0.03,136.34,136.33,21.08086721]
[1742085269729,0.03,136.38,136.34,0.14216157]
[1742085270030,0.03,136.38,136.36,13.46144407]
[1742085271449,14.98704407,136.37,136.32,13.46144407]
[1742085271619,1.37524294,136.36,136.32,20.79694407]
[1742085271936,8.70874294,136.36,136.32,13.46144407]
[1742085272443,90.90874294,136.36,136.32,13.46144407]
[1742085275235,83.57524294,136.36,136.32,20.79704407]
[1742085276530,82.2,136.35,136.31,13.52444407]
[1742085276830,88.521,136.35,136.31,13.52444407]
[1742085277628,1.37542262,136.34,136.31,0.063]
[1742085278433,13.46144407,136.32,136.31,0.063]
[1742085278614,41.33342914,136.32,136.31,0.063]
[1742085278810,95.46352856,136.32,136.31,0.063]
[1742085279010,18.933972,136.31,136.3,0.063]
[1742085279310,32.39541607,136.31,136.29,0.03]
[1742085279510,14.83765105,136.3,136.29,0.03]
[1742085280434,22.17435105,136.3,136.29,0.03]
[1742085288454,47.51052305,136.3,136.29,0.03]
[1742085288634,13.46144407,136.26,136.22,0.063]
[1742085288939,1.37642682,136.25,136.22,0.063]
[1742085289126,83.57642682,136.25,136.22,0.063]
[1742085289435,39.45159293,136.23,136.22,0.063]
[1742085289642,40.8283769,136.23,136.22,0.063]
[1742085290628,33.4878769,136.23,136.22,0.063]
[1742085290824,1.37678397,136.23,136.22,0.063]
[1742085291151,20.0,136.23,136.22,0.063]
[1742085292239,33.46144407,136.23,136.22,0.063]
[1742085294234,20.0,136.23,136.22,0.063]
[1742085294626,52.11109293,136.23,136.22,0.063]
[1742085296344,20.0,136.23,136.22,0.063]
[1742085296638,6.4022,136.25,136.22,0.063]
[1742085296817,7.77859342,136.25,136.22,13.52444407]
[1742085297017,1.37639342,136.25,136.22,13.52444407]
[1742085297639,18.64964886,136.26,136.22,13.52444407]
[1742085297640,1.37637309,136.26,136.23,13.46144407]